[Event "EYCC Girls-U16 2019"]
[Site "Bratislava"]
[Date "2019.08.06"]
[Round "5.1"]
[White "Waszczuk, Patrycja"]
[Black "Lehaci, Miruna-Daria"]
[Result "1/2-1/2"]
[ECO "B91"]
[WhiteElo "2119"]
[BlackElo "2201"]
[Annotator "NA"]
[PlyCount "131"]
[EventDate "2019.08.02"]
[EventType "swiss"]
[EventCountry "SVK"]
[SourceTitle "playchess.com"]
[Source "ChessBase"]
[SourceQuality "1"]
[TimeControl "40/5400+30:1800+30"]

1. e4 {[%emt 0:00:00]} c5 {[%emt 0:00:00]} 2. Nf3 {[%emt 0:00:00]} d6 {[%emt 0:00:00]} 3. d4 {[%emt 0:00:00]} cxd4 {[%emt 0:00:00]} 4. Nxd4 {[%emt 0:00:00]} Nf6 {[%emt 0:00:00]} 5. Nc3 {[%emt 0:00:00]} a6 {[%emt 0:00:00]} 6. g3 {[%emt 0:00:00]} g6 {[%emt 0:01:14]} 7. Bg2 {[%emt 0:00:20]} Bg7 {[%emt 0:00:17]} 8. O-O {[%emt 0:00:30]} O-O {[%emt 0:00:49]} 9. h3 {[%emt 0:00:24]} e6 {[%emt 0:13:26]} 10. Be3 {[%emt 0:01:47]} Qc7 {[%emt 0:04:55]} 11. a4 {[%emt 0:12:16]} Nbd7 {[%emt 0:04:52]} 12. Qd2 {[%emt 0:00:29]} Rb8 {[%emt 0:05:57]} 13. a5 {[%emt 0:07:54]} b5 {[%emt 0:02:39]} 14. axb6 {[%emt 0:01:10]} Nxb6 {[%emt 0:00:25]} 15. b3 {[%emt 0:03:36]} Bb7 {[%emt 0:03:38]} 16. Nde2 {[%emt 0:02:45]} Rfd8 {[%emt 0:05:53]} 17. Bd4 {[%emt 0:08:30]} Nbd7 {[%emt 0:09:25]} 18. g4 {[%emt 0:00:52]} e5 {[%emt 0:14:33]} 19. Be3 {[%emt 0:04:25]} Nc5 {[%emt 0:02:29]} 20. Ng3 {[%emt 0:03:31]} Ne6 {[%emt 0:05:30]} 21. Na4 {[%emt 0:16:03]} Ba8 {[%emt 0:03:57]} 22. g5 {[%emt 0:05:58]} Nd7 {[%emt 0:00:57]} 23. Nc3 {[%emt 0:02:46]} Nd4 {[%emt 0:08:47]} 24. Rxa6 {[%emt 0:05:59]} Rdc8 {[%emt 0:05:43]} 25. Nd5 {[%emt 0:00:06]} Bxd5 {[%emt 0:00:41]} 26. exd5 {[%emt 0:00:01]} Ra8 {[%emt 0:00:41]} 27. Rfa1 {[%emt 0:05:33]} Rxa6 {[%emt 0:00:05]} 28. Rxa6 {[%emt 0:00:02]} Nb8 {[%emt 0:00:08]} 29. Ra8 {[%emt 0:04:27]} Nxc2 {[%emt 0:01:40]} 30. Ne4 {[%emt 0:02:32]} Bf8 {[%emt 0:02:52]} 31. Ra7 {[%emt 0:00:34]} Qd8 {[%emt 0:00:04]} 32. Nf6+ {[%emt 0:01:28]} Kg7 {[%emt 0:00:04]} 33. h4 {[%emt 0:05:00]} Nxe3 {[%emt 0:02:23]} 34. Qxe3 {[%emt 0:00:11]} Be7 {[%emt 0:00:42]} 35. Ne4 {[%emt 0:05:03]} Rc7 {[%emt 0:00:53]} 36. Ra8 {[%emt 0:00:28]} Rb7 {[%emt 0:00:27]} 37. Ra7 {[%emt 0:01:46]} Qc7 {[%emt 0:00:29]} 38. Rxb7 {[%emt 0:00:13]} Qxb7 {[%emt 0:00:05]} 39. Qd3 {[%emt 0:00:30]} Qa6 {[%emt 0:01:06]} 40. Qc3 {[%emt 0:00:00]} Qb7 {[%emt 0:00:00]} 41. b4 {[%emt 0:05:36]} Na6 {[%emt 0:06:26]} 42. Qc6 {[%emt 0:07:03]} Qxc6 {[%emt 0:03:20]} 43. dxc6 {[%emt 0:01:32]} Nc7 {[%emt 0:00:44]} 44. Nc3 {[%emt 0:00:15]} d5 {[%emt 0:08:26]} 45. Nxd5 {[%emt 0:02:26]} Nxd5 {[%emt 0:00:07]} 46. Bxd5 {[%emt 0:00:02]} Bd8 {[%emt 0:00:04]} 47. b5 {[%emt 0:02:04]} f6 {[%emt 0:00:04]} 48. Kg2 {[%emt 0:00:37]} fxg5 {[%emt 0:00:30]} 49. hxg5 {[%emt 0:00:05]} h6 {[%emt 0:04:32]} 50. gxh6+ {[%emt 0:00:41]} Kxh6 {[%emt 0:00:04]} 51. Kf3 {[%emt 0:00:14]} Kg5 {[%emt 0:00:27]} 52. Ke4 {[%emt 0:00:11]} Kf6 {[%emt 0:00:04]} 53. Bg8 {[%emt 0:05:12]} Bb6 {[%emt 0:03:59]} 54. Kd5 {[%emt 0:00:53]} Ke7 {[%emt 0:00:04]} 55. f3 {[%emt 0:00:03]} g5 {[%emt 0:01:44]} 56. Be6 {[%emt 0:04:23]} Kd8 {[%emt 0:03:35]} 57. Kd6 {[%emt 0:00:16]} Ba5 {[%emt 0:00:04]} 58. c7+ {[%emt 0:01:16]} Bxc7+ {[%emt 0:00:04]} 59. Kc6 {[%emt 0:00:05]} Bb8 {[%emt 0:01:08]} 60. Kb7 {[%emt 0:02:14]} Bd6 {[%emt 0:01:42]} 61. b6 {[%emt 0:00:23]} Bc5 {[%emt 0:01:05]} 62. Kc6 {[%emt 0:00:29]} Be3 {[%emt 0:00:16]} 63. Bf5 {[%emt 0:01:56]} Bf2 {[%emt 0:00:11]} 64. Kb7 {[%emt 0:00:06]} Bc5 {[%emt 0:00:19]} 65. Ka6 {[%emt 0:00:13]} Be3 {[%emt 0:00:14]} 66. Bg4 {[%emt 0:00:44]} 1/2-1/2

[Event "EYCC Girls-U16 2019"]
[Site "Bratislava"]
[Date "2019.08.06"]
[Round "5.2"]
[White "Krasteva, Beloslava"]
[Black "Hercog, Nusa"]
[Result "1-0"]
[ECO "D10"]
[WhiteElo "2327"]
[BlackElo "2053"]
[Annotator "NA"]
[PlyCount "111"]
[EventDate "2019.08.02"]
[EventType "swiss"]
[EventCountry "SVK"]
[SourceTitle "playchess.com"]
[Source "ChessBase"]
[SourceQuality "1"]
[TimeControl "40/5400+30:1800+30"]

1. d4 {[%emt 0:00:00]} d5 {[%emt 0:00:00]} 2. c4 {[%emt 0:00:01]} c6 {[%emt 0:00:00]} 3. Nc3 {[%emt 0:00:16]} dxc4 {[%emt 0:00:00]} 4. e3 {[%emt 0:01:52]} b5 {[%emt 0:00:28]} 5. a4 {[%emt 0:03:32]} b4 {[%emt 0:00:17]} 6. Na2 {[%emt 0:01:25]} e6 {[%emt 0:00:49]} 7. Bxc4 {[%emt 0:00:50]} Nf6 {[%emt 0:01:12]} 8. Nf3 {[%emt 0:01:11]} Bb7 {[%emt 0:01:56]} 9. O-O {[%emt 0:02:46]} Nbd7 {[%emt 0:00:55]} 10. Qe2 {[%emt 0:03:20]} Qb6 {[%emt 0:10:31]} 11. b3 {[%emt 0:05:17]} c5 {[%emt 0:01:40]} 12. Bb2 {[%emt 0:01:54]} Bd6 {[%emt 0:05:23]} 13. Nc1 {[%emt 0:04:20]} a5 {[%emt 0:00:44]} 14. Nd3 {[%emt 0:01:34]} O-O {[%emt 0:05:05]} 15. Rac1 {[%emt 0:02:11]} Ne4 {[%emt 0:09:11]} 16. Nfe5 {[%emt 0:09:33]} Bxe5 {[%emt 0:14:45]} 17. dxe5 {[%emt 0:03:51]} h6 {[%emt 0:16:26]} 18. f3 {[%emt 0:03:00]} Ng5 {[%emt 0:00:16]} 19. h4 {[%emt 0:10:52]} Nh7 {[%emt 0:00:26]} 20. Bb5 {[%emt 0:02:14]} Bc6 {[%emt 0:00:24]} 21. Bxc6 {[%emt 0:01:02]} Qxc6 {[%emt 0:00:02]} 22. Rc4 {[%emt 0:01:46]} Rfc8 {[%emt 0:01:52]} 23. Rfc1 {[%emt 0:00:58]} Qb6 {[%emt 0:05:15]} 24. Bd4 {[%emt 0:03:02]} Qa6 {[%emt 0:06:45]} 25. Qc2 {[%emt 0:02:07]} Nhf8 {[%emt 0:00:32]} 26. Nxc5 {[%emt 0:05:56]} Nxc5 {[%emt 0:00:08]} 27. Rxc5 {[%emt 0:01:28]} Rxc5 {[%emt 0:01:42]} 28. Qxc5 {[%emt 0:00:11]} Qd3 {[%emt 0:05:35]} 29. Qc2 {[%emt 0:05:59]} Qxc2 {[%emt 0:00:21]} 30. Rxc2 {[%emt 0:00:01]} Ng6 {[%emt 0:01:06]} 31. h5 {[%emt 0:00:10]} Ne7 {[%emt 0:00:13]} 32. Kf2 {[%emt 0:00:23]} Kf8 {[%emt 0:02:19]} 33. Bc5 {[%emt 0:06:27]} Ke8 {[%emt 0:00:34]} 34. Bxe7 {[%emt 0:02:05]} Kxe7 {[%emt 0:00:04]} 35. Rc7+ {[%emt 0:00:07]} Ke8 {[%emt 0:00:03]} 36. Ke2 {[%emt 0:00:22]} Rd8 {[%emt 0:07:29]} 37. Rc5 {[%emt 0:00:45]} Ra8 {[%emt 0:01:01]} 38. Kd3 {[%emt 0:02:53]} Kd7 {[%emt 0:01:17]} 39. Kc4 {[%emt 0:01:19]} g6 {[%emt 0:01:08]} 40. Kb5 {[%emt 0:00:00]} gxh5 {[%emt 0:00:00]} 41. Kb6 {[%emt 0:08:04]} Rg8 {[%emt 0:02:43]} 42. Rc7+ {[%emt 0:01:20]} Kd8 {[%emt 0:02:35]} 43. Rc2 {[%emt 0:00:41]} Rg5 {[%emt 0:01:24]} 44. f4 {[%emt 0:00:36]} Rg3 {[%emt 0:00:08]} 45. Re2 {[%emt 0:05:48]} h4 {[%emt 0:04:00]} 46. Kxa5 {[%emt 0:00:05]} h3 {[%emt 0:00:08]} 47. gxh3 {[%emt 0:00:04]} Rxh3 {[%emt 0:00:02]} 48. Kxb4 {[%emt 0:00:43]} Rh1 {[%emt 0:00:12]} 49. a5 {[%emt 0:01:11]} h5 {[%emt 0:00:28]} 50. a6 {[%emt 0:01:10]} Kc7 {[%emt 0:00:14]} 51. Kb5 {[%emt 0:00:20]} h4 {[%emt 0:00:15]} 52. Rc2+ {[%emt 0:00:36]} Kb8 {[%emt 0:00:04]} 53. Kb6 {[%emt 0:00:08]} Ra1 {[%emt 0:00:24]} 54. Rg2 {[%emt 0:00:25]} Kc8 {[%emt 0:00:33]} 55. Rg8+ {[%emt 0:00:34]} Kd7 {[%emt 0:00:01]} 56. a7 {[%emt 0:00:08]} 1-0

[Event "EYCC Girls-U16 2019"]
[Site "Bratislava"]
[Date "2019.08.06"]
[Round "5.3"]
[White "Kuhar, Larisa"]
[Black "Malicka, Maria"]
[Result "1/2-1/2"]
[ECO "C45"]
[WhiteElo "1894"]
[BlackElo "2115"]
[Annotator "NA"]
[PlyCount "60"]
[EventDate "2019.08.02"]
[EventType "swiss"]
[EventCountry "SVK"]
[SourceTitle "playchess.com"]
[Source "ChessBase"]
[SourceQuality "1"]
[TimeControl "40/5400+30:1800+30"]

1. e4 {[%emt 0:00:00]} e5 {[%emt 0:00:00]} 2. Nf3 {[%emt 0:00:00]} Nc6 {[%emt 0:00:00]} 3. d4 {[%emt 0:00:07]} exd4 {[%emt 0:00:00]} 4. Nxd4 {[%emt 0:00:05]} Bc5 {[%emt 0:00:06]} 5. Nxc6 {[%emt 0:00:08]} bxc6 {[%emt 0:00:21]} 6. Qf3 {[%emt 0:00:13]} Qf6 {[%emt 0:04:34]} 7. Nd2 {[%emt 0:00:30]} d6 {[%emt 0:04:20]} 8. Nb3 {[%emt 0:01:11]} Qxf3 {[%emt 0:08:09]} 9. gxf3 {[%emt 0:01:04]} Bb6 {[%emt 0:00:16]} 10. Be3 {[%emt 0:00:22]} Nf6 {[%emt 0:04:12]} 11. Rg1 {[%emt 0:03:54]} Bxe3 {[%emt 0:07:29]} 12. fxe3 {[%emt 0:00:09]} O-O {[%emt 0:00:08]} 13. c4 {[%emt 0:14:19]} c5 {[%emt 0:05:58]} 14. e5 {[%emt 0:03:57]} dxe5 {[%emt 0:01:16]} 15. Nxc5 {[%emt 0:00:34]} Rd8 {[%emt 0:04:15]} 16. Rg5 {[%emt 0:03:10]} Rb8 {[%emt 0:08:11]} 17. b3 {[%emt 0:02:22]} Re8 {[%emt 0:02:06]} 18. Rd1 {[%emt 0:03:22]} h6 {[%emt 0:04:15]} 19. Rg1 {[%emt 0:04:17]} Bf5 {[%emt 0:02:42]} 20. Be2 {[%emt 0:16:51]} Red8 {[%emt 0:06:34]} 21. Kf2 {[%emt 0:01:21]} Rd6 {[%emt 0:00:54]} 22. Rxd6 {[%emt 0:06:34]} cxd6 {[%emt 0:00:01]} 23. Na4 {[%emt 0:00:10]} Kf8 {[%emt 0:04:29]} 24. Rd1 {[%emt 0:06:16]} Ke7 {[%emt 0:00:50]} 25. Nc3 {[%emt 0:03:30]} Bd7 {[%emt 0:01:36]} 26. Rb1 {[%emt 0:06:54]} Be6 {[%emt 0:06:55]} 27. Nb5 {[%emt 0:01:39]} Bd7 {[%emt 0:03:26]} 28. Nc3 {[%emt 0:01:10]} Be6 {[%emt 0:00:15]} 29. Nb5 {[%emt 0:06:26]} Bd7 {[%emt 0:00:43]} 30. Nc3 {[%emt 0:01:40]} Be6 {[%emt 0:04:51]} 1/2-1/2

[Event "EYCC Girls-U16 2019"]
[Site "Bratislava"]
[Date "2019.08.06"]
[Round "5.4"]
[White "Afanasieva, Alexandra"]
[Black "Sade, Defne"]
[Result "0-1"]
[ECO "C96"]
[WhiteElo "2085"]
[BlackElo "1897"]
[Annotator "NA"]
[PlyCount "84"]
[EventDate "2019.08.02"]
[EventType "swiss"]
[EventCountry "SVK"]
[SourceTitle "playchess.com"]
[Source "ChessBase"]
[SourceQuality "1"]
[TimeControl "40/5400+30:1800+30"]

1. e4 {[%emt 0:00:00]} e5 {[%emt 0:00:00]} 2. Nf3 {[%emt 0:00:00]} Nc6 {[%emt 0:00:00]} 3. Bb5 {[%emt 0:00:00]} a6 {[%emt 0:00:00]} 4. Ba4 {[%emt 0:00:00]} Nf6 {[%emt 0:00:00]} 5. O-O {[%emt 0:00:00]} Be7 {[%emt 0:00:00]} 6. Re1 {[%emt 0:00:06]} b5 {[%emt 0:00:03]} 7. Bb3 {[%emt 0:00:04]} d6 {[%emt 0:00:07]} 8. c3 {[%emt 0:00:11]} O-O {[%emt 0:00:07]} 9. h3 {[%emt 0:00:04]} Na5 {[%emt 0:00:08]} 10. Bc2 {[%emt 0:00:06]} c5 {[%emt 0:00:07]} 11. d4 {[%emt 0:00:10]} Nd7 {[%emt 0:00:07]} 12. d5 {[%emt 0:04:22]} Nb6 {[%emt 0:00:13]} 13. Nbd2 {[%emt 0:01:35]} f5 {[%emt 0:00:59]} 14. exf5 {[%emt 0:36:01]} Bxf5 {[%emt 0:00:46]} 15. Bxf5 {[%emt 0:00:19]} Rxf5 {[%emt 0:00:09]} 16. Ne4 {[%emt 0:01:56]} Qe8 {[%emt 0:14:53]} 17. Bg5 {[%emt 0:09:31]} h6 {[%emt 0:00:36]} 18. Bxe7 {[%emt 0:00:53]} Qxe7 {[%emt 0:00:07]} 19. b3 {[%emt 0:01:25]} Raf8 {[%emt 0:02:02]} 20. Re3 {[%emt 0:03:29]} Nb7 {[%emt 0:07:36]} 21. Qd2 {[%emt 0:05:56]} Rf4 {[%emt 0:03:32]} 22. Rd1 {[%emt 0:05:32]} Qf7 {[%emt 0:01:01]} 23. Nh2 {[%emt 0:09:59]} Nc8 {[%emt 0:12:51]} 24. f3 {[%emt 0:03:00]} Ne7 {[%emt 0:01:08]} 25. Ng4 {[%emt 0:02:38]} Qg6 {[%emt 0:06:00]} 26. Qd3 {[%emt 0:07:35]} h5 {[%emt 0:01:21]} 27. Nh2 {[%emt 0:00:21]} Nf5 {[%emt 0:01:24]} 28. Nf2 {[%emt 0:02:08]} c4 {[%emt 0:02:58]} 29. Qb1 {[%emt 0:01:01]} Nc5 {[%emt 0:01:44]} 30. Re2 {[%emt 0:01:03]} Qg3 {[%emt 0:02:29]} 31. Nf1 {[%emt 0:01:07]} Qg5 {[%emt 0:00:11]} 32. Ne4 {[%emt 0:01:31]} Nxe4 {[%emt 0:00:40]} 33. fxe4 {[%emt 0:00:13]} Nh4 {[%emt 0:00:48]} 34. Nd2 {[%emt 0:02:59]} Ng6 {[%emt 0:10:51]} 35. bxc4 {[%emt 0:00:47]} bxc4 {[%emt 0:00:36]} 36. Nxc4 {[%emt 0:00:38]} R4f6 {[%emt 0:03:14]} 37. Kh1 {[%emt 0:00:32]} Rf2 {[%emt 0:04:22]} 38. Rxf2 {[%emt 0:00:26]} Rxf2 {[%emt 0:00:07]} 39. Rg1 {[%emt 0:00:25]} Nf4 {[%emt 0:16:33]} 40. Qb8+ {[%emt 0:00:00]} Kh7 {[%emt 0:00:00]} 41. Nxd6 {[%emt 0:06:00]} Ne2 {[%emt 0:03:20]} 42. Nf7 {[%emt 0:10:05]} Rxf7 {[%emt 0:01:30]} 0-1

[Event "EYCC Girls-U16 2019"]
[Site "Bratislava"]
[Date "2019.08.06"]
[Round "5.5"]
[White "Marcinczyk, Monika"]
[Black "Loskutova, Viktoriya"]
[Result "1/2-1/2"]
[ECO "B84"]
[WhiteElo "1960"]
[BlackElo "2019"]
[Annotator "NA"]
[PlyCount "77"]
[EventDate "2019.08.02"]
[EventType "swiss"]
[EventCountry "SVK"]
[SourceTitle "playchess.com"]
[Source "ChessBase"]
[SourceQuality "1"]
[TimeControl "40/5400+30:1800+30"]

1. e4 {[%emt 0:00:00]} c5 {[%emt 0:00:00]} 2. Nf3 {[%emt 0:00:00]} d6 {[%emt 0:00:00]} 3. d4 {[%emt 0:00:00]} cxd4 {[%emt 0:00:00]} 4. Nxd4 {[%emt 0:00:00]} Nf6 {[%emt 0:00:00]} 5. Nc3 {[%emt 0:00:00]} a6 {[%emt 0:00:00]} 6. Be2 {[%emt 0:00:12]} e6 {[%emt 0:00:04]} 7. O-O {[%emt 0:00:13]} Be7 {[%emt 0:00:05]} 8. f4 {[%emt 0:00:18]} O-O {[%emt 0:00:08]} 9. Be3 {[%emt 0:00:21]} Qc7 {[%emt 0:00:12]} 10. Qe1 {[%emt 0:00:33]} b5 {[%emt 0:00:54]} 11. Bf3 {[%emt 0:10:28]} Bb7 {[%emt 0:01:04]} 12. e5 {[%emt 0:02:27]} dxe5 {[%emt 0:01:00]} 13. fxe5 {[%emt 0:02:22]} Nfd7 {[%emt 0:00:21]} 14. Bxb7 {[%emt 0:04:49]} Qxb7 {[%emt 0:00:06]} 15. Qg3 {[%emt 0:00:50]} Bc5 {[%emt 0:11:26]} 16. Rad1 {[%emt 0:20:42]} Qc7 {[%emt 0:20:28]} 17. Ne4 {[%emt 0:15:17]} Be7 {[%emt 0:09:36]} 18. Nf3 {[%emt 0:05:45]} f6 {[%emt 0:12:33]} 19. Bh6 {[%emt 0:02:59]} Rf7 {[%emt 0:00:05]} 20. Nd6 {[%emt 0:09:04]} Bxd6 {[%emt 0:00:20]} 21. Rxd6 {[%emt 0:02:41]} Nxe5 {[%emt 0:08:05]} 22. Rxe6 {[%emt 0:07:13]} Nbc6 {[%emt 0:15:44]} 23. Nxe5 {[%emt 0:00:39]} Nxe5 {[%emt 0:00:34]} 24. Rexf6 {[%emt 0:01:23]} Rxf6 {[%emt 0:01:58]} 25. Rxf6 {[%emt 0:00:05]} Qe7 {[%emt 0:11:01]} 26. Rf1 {[%emt 0:03:49]} Ng6 {[%emt 0:01:57]} 27. Be3 {[%emt 0:01:14]} Re8 {[%emt 0:00:48]} 28. Bd4 {[%emt 0:00:49]} Qe4 {[%emt 0:02:13]} 29. c3 {[%emt 0:01:52]} Qe7 {[%emt 0:01:57]} 30. Qg4 {[%emt 0:02:57]} Qb7 {[%emt 0:01:24]} 31. Qf3 {[%emt 0:00:40]} Qxf3 {[%emt 0:00:26]} 32. Rxf3 {[%emt 0:02:39]} Re2 {[%emt 0:00:08]} 33. c4 {[%emt 0:02:23]} bxc4 {[%emt 0:00:24]} 34. g3 {[%emt 0:00:54]} Re4 {[%emt 0:00:59]} 35. Bc3 {[%emt 0:00:56]} Ne7 {[%emt 0:00:45]} 36. Bb4 {[%emt 0:00:44]} g6 {[%emt 0:00:17]} 37. Bxe7 {[%emt 0:00:35]} Rxe7 {[%emt 0:00:01]} 38. Ra3 Re2 {[%emt 0:00:05]} 39. Rxa6 {[%emt 0:00:50]} 1/2-1/2

[Event "EYCC Girls-U16 2019"]
[Site "Bratislava"]
[Date "2019.08.06"]
[Round "5.6"]
[White "Ozbek, Busra"]
[Black "Getman, Tatyana"]
[Result "0-1"]
[ECO "A46"]
[WhiteElo "1866"]
[BlackElo "2143"]
[Annotator "NA"]
[PlyCount "86"]
[EventDate "2019.08.02"]
[EventType "swiss"]
[EventCountry "SVK"]
[SourceTitle "playchess.com"]
[Source "ChessBase"]
[SourceQuality "1"]
[TimeControl "40/5400+30:1800+30"]

1. d4 {[%emt 0:00:00]} Nf6 {[%emt 0:00:00]} 2. Nf3 {[%emt 0:00:00]} e6 {[%emt 0:00:00]} 3. e3 {[%emt 0:00:13]} b6 {[%emt 0:00:00]} 4. Bd3 {[%emt 0:00:52]} Bb7 {[%emt 0:00:00]} 5. b3 {[%emt 0:00:07]} d5 {[%emt 0:00:05]} 6. Bb2 {[%emt 0:00:38]} Bd6 {[%emt 0:00:09]} 7. O-O {[%emt 0:00:41]} O-O {[%emt 0:00:16]} 8. c4 {[%emt 0:00:41]} Ne4 {[%emt 0:03:57]} 9. Nc3 {[%emt 0:01:43]} a6 {[%emt 0:05:57]} 10. Qc2 {[%emt 0:09:13]} f5 {[%emt 0:00:20]} 11. Ne2 {[%emt 0:00:15]} Nd7 {[%emt 0:04:58]} 12. Ne5 {[%emt 0:02:53]} Bxe5 {[%emt 0:05:05]} 13. dxe5 {[%emt 0:00:38]} Ndc5 {[%emt 0:04:45]} 14. Ba3 {[%emt 0:11:57]} Re8 {[%emt 0:11:51]} 15. f3 {[%emt 0:17:04]} Qg5 {[%emt 0:09:27]} 16. Nf4 {[%emt 0:11:00]} Nxd3 {[%emt 0:00:24]} 17. Qxd3 {[%emt 0:00:28]} Nc5 {[%emt 0:01:28]} 18. Qd4 {[%emt 0:13:39]} Nd7 {[%emt 0:03:18]} 19. c5 {[%emt 0:09:25]} b5 {[%emt 0:05:41]} 20. Rac1 {[%emt 0:05:07]} Nb8 {[%emt 0:00:26]} 21. Bb2 {[%emt 0:01:23]} Nc6 {[%emt 0:01:41]} 22. Qd2 {[%emt 0:01:01]} a5 {[%emt 0:06:19]} 23. a3 {[%emt 0:00:15]} Qh6 {[%emt 0:08:50]} 24. Bd4 {[%emt 0:03:56]} Kf7 {[%emt 0:02:11]} 25. g4 {[%emt 0:01:34]} fxg4 {[%emt 0:04:22]} 26. fxg4 {[%emt 0:00:29]} Kg8 {[%emt 0:00:05]} 27. Qf2 {[%emt 0:01:25]} Qg5 {[%emt 0:02:19]} 28. h3 {[%emt 0:04:10]} Nxe5 {[%emt 0:06:08]} 29. Nxe6 {[%emt 0:01:36]} Rxe6 {[%emt 0:01:06]} 30. Bxe5 {[%emt 0:00:03]} Qg6 {[%emt 0:00:30]} 31. Bd4 {[%emt 0:00:58]} b4 {[%emt 0:02:53]} 32. Qf4 {[%emt 0:01:44]} Re7 {[%emt 0:04:44]} 33. axb4 {[%emt 0:00:32]} axb4 {[%emt 0:00:19]} 34. Ra1 {[%emt 0:00:23]} Rae8 {[%emt 0:02:53]} 35. Qf5 {[%emt 0:00:36]} Qh6 {[%emt 0:01:35]} 36. g5 {[%emt 0:00:31]} Qh5 {[%emt 0:01:19]} 37. Rf3 {[%emt 0:00:35]} Bc8 {[%emt 0:00:17]} 38. Qxd5+ {[%emt 0:00:21]} Be6 {[%emt 0:00:04]} 39. Qc6 {[%emt 0:00:48]} Qxg5+ {[%emt 0:00:10]} 40. Kf2 {[%emt 0:00:00]} Bd5 {[%emt 0:00:00]} 41. Bf6 {[%emt 0:21:14]} Qh5 {[%emt 0:01:00]} 42. Qxd5+ {[%emt 0:04:33]} Qxd5 {[%emt 0:00:07]} 43. Bxe7 {[%emt 0:00:07]} Rxe7 {[%emt 0:00:14]} 0-1

[Event "EYCC Girls-U16 2019"]
[Site "Bratislava"]
[Date "2019.08.06"]
[Round "5.7"]
[White "Mkrtchyan, Mariam"]
[Black "Kuzich, Aryna"]
[Result "1-0"]
[ECO "A00"]
[WhiteElo "1981"]
[BlackElo "1940"]
[Annotator "NA"]
[PlyCount "59"]
[EventDate "2019.08.02"]
[EventType "swiss"]
[EventCountry "SVK"]
[SourceTitle "playchess.com"]
[Source "ChessBase"]
[SourceQuality "1"]
[TimeControl "40/5400+30:1800+30"]

1. g3 {[%emt 0:00:00]} c5 {[%emt 0:00:19]} 2. Bg2 {[%emt 0:00:00]} Nc6 {[%emt 0:01:13]} 3. d3 {[%emt 0:00:00]} d5 {[%emt 0:01:21]} 4. Nd2 {[%emt 0:00:09]} e5 {[%emt 0:02:50]} 5. e4 {[%emt 0:01:06]} d4 {[%emt 0:02:31]} 6. a4 {[%emt 0:02:52]} Bd6 {[%emt 0:13:59]} 7. Ne2 {[%emt 0:03:20]} Nf6 {[%emt 0:08:07]} 8. O-O {[%emt 0:01:02]} O-O {[%emt 0:03:15]} 9. f4 {[%emt 0:05:10]} exf4 {[%emt 0:03:32]} 10. gxf4 {[%emt 0:02:34]} Bc7 {[%emt 0:14:32]} 11. Nf3 {[%emt 0:13:41]} c4 {[%emt 0:12:47]} 12. e5 {[%emt 0:09:46]} Ng4 {[%emt 0:07:55]} 13. h3 {[%emt 0:05:19]} cxd3 {[%emt 0:03:45]} 14. cxd3 {[%emt 0:08:03]} Nh6 {[%emt 0:00:17]} 15. Ng3 {[%emt 0:01:08]} Nf5 {[%emt 0:01:56]} 16. Ne4 {[%emt 0:01:50]} h6 {[%emt 0:02:34]} 17. Nh2 {[%emt 0:05:25]} Nce7 {[%emt 0:07:34]} 18. Ng4 {[%emt 0:02:57]} Nd5 {[%emt 0:02:27]} 19. Qb3 {[%emt 0:05:24]} Be6 {[%emt 0:02:00]} 20. Nc5 {[%emt 0:01:55]} Nxf4 {[%emt 0:05:35]} 21. Nxe6 {[%emt 0:03:56]} Ne2+ {[%emt 0:00:03]} 22. Kh2 {[%emt 0:03:35]} Bxe5+ {[%emt 0:01:43]} 23. Nxe5 {[%emt 0:01:53]} Qf6 {[%emt 0:00:22]} 24. Ng4 {[%emt 0:04:33]} Qxe6 {[%emt 0:00:19]} 25. Qxe6 {[%emt 0:01:26]} fxe6 {[%emt 0:00:01]} 26. Bd2 {[%emt 0:01:49]} h5 {[%emt 0:00:48]} 27. Ne5 {[%emt 0:00:21]} h4 {[%emt 0:00:44]} 28. Bg5 {[%emt 0:01:15]} Rfc8 {[%emt 0:00:43]} 29. Rf2 {[%emt 0:00:32]} Neg3 {[%emt 0:00:24]} 30. Bxb7 {[%emt 0:00:39]} 1-0